[Event "GrandPrix_29.05"]
[Site "Chess.com"]
[Date "2020.05.29"]
[Round "7"]
[White "DanielDardha2005"]
[Black "Sporty207"]
[Result "1-0"]
[WhiteElo "2412"]
[BlackElo "2220"]
[TimeControl "600+2"]
[EndTime "12:28:53 PDT"]
[Termination "DanielDardha2005 won by resignation"]

1. e4 {[%clk 0:10:01.9]} 1... e6 {[%clk 0:09:48.4]} 2. Qe2 {[%clk 0:09:59.9]}
2... c5 {[%clk 0:09:48.4]} 3. g3 {[%clk 0:09:58.5]} 3... Nc6 {[%clk 0:09:47]} 4.
Bg2 {[%clk 0:09:59.6]} 4... g6 {[%clk 0:09:46.5]} 5. Nf3 {[%clk 0:10:00.3]} 5...
Bg7 {[%clk 0:09:41.3]} 6. O-O {[%clk 0:10:01.6]} 6... Nge7 {[%clk 0:09:39.3]} 7.
c3 {[%clk 0:09:55.6]} 7... d5 {[%clk 0:09:28.6]} 8. e5 {[%clk 0:09:52]} 8... Rb8
{[%clk 0:09:12.1]} 9. d4 {[%clk 0:09:52.3]} 9... c4 {[%clk 0:08:58.7]} 10. h4
{[%clk 0:09:40.7]} 10... b5 {[%clk 0:08:56]} 11. h5 {[%clk 0:09:34.4]} 11... O-O
{[%clk 0:08:16.7]} 12. Nbd2 {[%clk 0:08:49.8]} 12... b4 {[%clk 0:08:09.5]} 13.
Qe3 {[%clk 0:08:15.8]} 13... Nf5 {[%clk 0:07:22.4]} 14. Qf4 {[%clk 0:08:12.4]}
14... bxc3 {[%clk 0:06:59.9]} 15. bxc3 {[%clk 0:08:14.3]} 15... Qa5 {[%clk
0:07:00.7]} 16. g4 {[%clk 0:08:13]} 16... Nh6 {[%clk 0:06:58.9]} 17. Nb1 {[%clk
0:07:57.8]} 17... Bd7 {[%clk 0:06:41]} 18. Qg3 {[%clk 0:07:44.1]} 18... Qa4
{[%clk 0:06:06.7]} 19. Bg5 {[%clk 0:07:42.9]} 19... gxh5 {[%clk 0:05:52.2]} 20.
gxh5 {[%clk 0:06:06.5]} 20... Nf5 {[%clk 0:05:51.8]} 21. Qf4 {[%clk 0:06:07.2]}
21... h6 {[%clk 0:05:52]} 22. Bf6 {[%clk 0:06:05.9]} 22... Kh7 {[%clk
0:05:51.3]} 23. Bxg7 {[%clk 0:05:55.4]} 23... Kxg7 {[%clk 0:05:45.5]} 24. Bh3
{[%clk 0:05:40.7]} 24... Rg8 {[%clk 0:05:22]} 25. Kh2 {[%clk 0:05:34.3]} 25...
Nce7 {[%clk 0:05:16.5]} 26. Nbd2 {[%clk 0:05:26.1]} 26... Kh7 {[%clk 0:05:14.3]}
27. Rfc1 {[%clk 0:04:43]} 27... Rb2 {[%clk 0:05:05]} 28. Rg1 {[%clk 0:04:41.5]}
28... Rbb8 {[%clk 0:05:04]} 29. Nh4 {[%clk 0:04:27.6]} 29... Nxh4 {[%clk
0:04:51.2]} 30. Qxf7+ {[%clk 0:04:23.8]} 30... Kh8 {[%clk 0:04:00.8]} 31. Qf6+
{[%clk 0:04:23.9]} 31... Kh7 {[%clk 0:03:58]} 32. Qxe7+ {[%clk 0:04:24.5]} 32...
Kh8 {[%clk 0:03:58.7]} 33. Qxh4 {[%clk 0:04:13.7]} 33... Qc2 {[%clk 0:03:29.7]}
34. Qf4 {[%clk 0:03:42.2]} 34... Kh7 {[%clk 0:03:23.5]} 35. Rxg8 {[%clk
0:03:15.3]} 35... Rxg8 {[%clk 0:03:19.1]} 36. Rg1 {[%clk 0:03:16.5]} 36... Rxg1
{[%clk 0:02:10.6]} 37. Kxg1 {[%clk 0:03:15.7]} 37... Qd1+ {[%clk 0:02:12.1]} 38.
Nf1 {[%clk 0:03:07.8]} 38... Qxh5 {[%clk 0:02:13.6]} 39. Bg4 {[%clk 0:03:02.5]}
39... Qg6 {[%clk 0:02:02.6]} 40. Ng3 {[%clk 0:03:01.3]} 40... Ba4 {[%clk
0:01:39.8]} 41. Bh5 {[%clk 0:02:58.5]} 41... Qg7 {[%clk 0:01:29.1]} 42. Qf7
{[%clk 0:02:55.1]} 42... Qxf7 {[%clk 0:01:18.8]} 43. Bxf7 {[%clk 0:02:57]} 43...
Bd7 {[%clk 0:01:19.8]} 44. Nh5 {[%clk 0:02:58.3]} 1-0

[Event "GrandPrix_29.05"]
[Site "Chess.com"]
[Date "2020.05.29"]
[Round "7"]
[White "Sunerorlater"]
[Black "SmirnovTimofey2000"]
[Result "0-1"]
[WhiteElo "2208"]
[BlackElo "2234"]
[TimeControl "600+2"]
[EndTime "12:28:57 PDT"]
[Termination "SmirnovTimofey2000 won by resignation"]

1. e4 {[%clk 0:10:01.8]} 1... c5 {[%clk 0:09:58.9]} 2. Nf3 {[%clk 0:10:02.4]}
2... d6 {[%clk 0:09:59.7]} 3. d4 {[%clk 0:10:01.2]} 3... cxd4 {[%clk 0:10:01.6]}
4. Nxd4 {[%clk 0:10:01.8]} 4... Nf6 {[%clk 0:10:02.5]} 5. Nc3 {[%clk 0:10:01.6]}
5... a6 {[%clk 0:10:03.3]} 6. Bd3 {[%clk 0:10:02.1]} 6... e5 {[%clk 0:09:55]} 7.
Nde2 {[%clk 0:10:02.4]} 7... Be7 {[%clk 0:09:51.6]} 8. O-O {[%clk 0:10:02.7]}
8... O-O {[%clk 0:09:47.4]} 9. Ng3 {[%clk 0:09:53.7]} 9... Re8 {[%clk 0:09:38]}
10. Kh1 {[%clk 0:09:51.4]} 10... b5 {[%clk 0:09:36.4]} 11. f4 {[%clk 0:09:49.7]}
11... exf4 {[%clk 0:09:26]} 12. Bxf4 {[%clk 0:09:48.8]} 12... Nc6 {[%clk
0:09:26.4]} 13. Nd5 {[%clk 0:09:43.4]} 13... Ne5 {[%clk 0:09:21.2]} 14. Nxe7+
{[%clk 0:09:44.1]} 14... Qxe7 {[%clk 0:09:15.9]} 15. Bg5 {[%clk 0:09:45]} 15...
Neg4 {[%clk 0:09:02.4]} 16. Nh5 {[%clk 0:09:09.5]} 16... Qe5 {[%clk 0:08:19.9]}
17. Nxf6+ {[%clk 0:09:08.1]} 17... Nxf6 {[%clk 0:08:14.9]} 18. Bxf6 {[%clk
0:09:04.5]} 18... gxf6 {[%clk 0:08:16.8]} 19. Qf3 {[%clk 0:08:54.3]} 19... Kg7
{[%clk 0:08:12.4]} 20. c3 {[%clk 0:08:47.1]} 20... Bd7 {[%clk 0:08:05]} 21. Rad1
{[%clk 0:08:44.1]} 21... Rad8 {[%clk 0:08:04.7]} 22. Bc2 {[%clk 0:08:43.3]}
22... Bc6 {[%clk 0:07:38.4]} 23. Rd4 {[%clk 0:08:24]} 23... Qg5 {[%clk
0:07:17.9]} 24. Qf2 {[%clk 0:08:00]} 24... Re5 {[%clk 0:06:50.1]} 25. Rd3 {[%clk
0:07:57.6]} 25... Kh8 {[%clk 0:05:23.5]} 26. Rg3 {[%clk 0:07:54.3]} 26... Qh6
{[%clk 0:05:23]} 27. Qb6 {[%clk 0:07:44.5]} 27... Rc8 {[%clk 0:05:10.6]} 28.
Qxa6 {[%clk 0:07:45]} 28... Ree8 {[%clk 0:05:10.9]} 29. Qa7 {[%clk 0:07:07.3]}
29... Rg8 {[%clk 0:04:32.2]} 30. Rxg8+ {[%clk 0:06:06.8]} 30... Kxg8 {[%clk
0:04:25.6]} 31. Qa6 {[%clk 0:05:53.7]} 31... Rc7 {[%clk 0:04:19.7]} 32. Qb6
{[%clk 0:05:49.2]} 32... Rc8 {[%clk 0:04:19.3]} 33. Qd4 {[%clk 0:05:33.1]} 33...
Re8 {[%clk 0:04:18.8]} 34. Qxd6 {[%clk 0:03:13.5]} 34... Bxe4 {[%clk 0:04:17.3]}
35. Bxe4 {[%clk 0:03:13.8]} 35... Rxe4 {[%clk 0:04:15.7]} 36. Qb8+ {[%clk
0:03:09.5]} 36... Kg7 {[%clk 0:04:13.3]} 37. Qxb5 {[%clk 0:03:08]} 37... Qd2
{[%clk 0:02:58.4]} 38. h3 {[%clk 0:02:51.3]} 38... Re2 {[%clk 0:01:58.3]} 39.
Qc6 {[%clk 0:02:39.5]} 39... Re6 {[%clk 0:01:56.8]} 40. Qb6 {[%clk 0:02:01.9]}
40... Rxb6 {[%clk 0:01:56.8]} 0-1

[Event "GrandPrix_29.05"]
[Site "Chess.com"]
[Date "2020.05.29"]
[Round "7"]
[White "mishikomchedlishvili"]
[Black "Rikikits"]
[Result "0-1"]
[WhiteElo "2414"]
[BlackElo "2747"]
[TimeControl "600+2"]
[EndTime "12:29:06 PDT"]
[Termination "Rikikits won by resignation"]

1. d4 {[%clk 0:09:41.6]} 1... f5 {[%clk 0:09:58.7]} 2. Nc3 {[%clk 0:09:40.5]}
2... Nf6 {[%clk 0:09:56.4]} 3. Bg5 {[%clk 0:09:40.4]} 3... d5 {[%clk 0:09:57.5]}
4. Bxf6 {[%clk 0:09:40]} 4... exf6 {[%clk 0:09:59.4]} 5. e3 {[%clk 0:09:40.4]}
5... Be6 {[%clk 0:10:00.2]} 6. a3 {[%clk 0:09:32.3]} 6... Bd6 {[%clk 0:10:00.3]}
7. Bd3 {[%clk 0:09:24.9]} 7... Nc6 {[%clk 0:09:58.6]} 8. Nge2 {[%clk 0:09:19.6]}
8... Ne7 {[%clk 0:09:56.1]} 9. Nb5 {[%clk 0:09:17]} 9... a6 {[%clk 0:09:53]} 10.
Nxd6+ {[%clk 0:09:17.9]} 10... Qxd6 {[%clk 0:09:54.9]} 11. O-O {[%clk
0:09:16.5]} 11... h5 {[%clk 0:09:47.7]} 12. b3 {[%clk 0:09:06.1]} 12... h4
{[%clk 0:09:48.2]} 13. c4 {[%clk 0:08:59.5]} 13... g5 {[%clk 0:09:47.8]} 14. Qc2
{[%clk 0:08:54.3]} 14... c6 {[%clk 0:09:35.7]} 15. Rfe1 {[%clk 0:08:24.3]} 15...
Kf7 {[%clk 0:09:34.8]} 16. b4 {[%clk 0:08:23.9]} 16... dxc4 {[%clk 0:09:32.3]}
17. Bxc4 {[%clk 0:08:24]} 17... Bxc4 {[%clk 0:09:34.2]} 18. Qxc4+ {[%clk
0:08:24.5]} 18... Qd5 {[%clk 0:09:35.9]} 19. Rec1 {[%clk 0:07:57.9]} 19... h3
{[%clk 0:09:35.6]} 20. g3 {[%clk 0:07:57.8]} 20... a5 {[%clk 0:09:02.8]} 21. b5
{[%clk 0:06:17.7]} 21... cxb5 {[%clk 0:09:04.7]} 22. Qxd5+ {[%clk 0:06:18.5]}
22... Nxd5 {[%clk 0:09:05.4]} 23. Rc5 {[%clk 0:06:20.2]} 23... Ke6 {[%clk
0:09:07]} 24. Rxb5 {[%clk 0:06:21.1]} 24... b6 {[%clk 0:09:08.5]} 25. f3 {[%clk
0:06:12]} 25... Nxe3 {[%clk 0:09:08.8]} 26. Rxb6+ {[%clk 0:06:11.7]} 26... Kf7
{[%clk 0:09:09.6]} 27. Kf2 {[%clk 0:06:06.4]} 27... Rhe8 {[%clk 0:08:10.2]} 28.
Rc1 {[%clk 0:06:01.5]} 28... Re7 {[%clk 0:07:49.5]} 29. Rbc6 {[%clk 0:05:02.5]}
29... Nd5 {[%clk 0:06:47.2]} 30. Nc3 {[%clk 0:05:01.6]} 30... Rd8 {[%clk
0:06:46.7]} 31. Rd1 {[%clk 0:04:00.6]} 31... Rb7 {[%clk 0:06:25.7]} 32. Rd2
{[%clk 0:03:51.5]} 32... Rb3 {[%clk 0:06:21.5]} 33. Nxd5 {[%clk 0:02:27.1]}
33... Rxd5 {[%clk 0:06:23.4]} 34. Rc8 {[%clk 0:02:28.5]} 34... Rxa3 {[%clk
0:06:11.2]} 35. Rh8 {[%clk 0:02:29]} 35... g4 {[%clk 0:06:05.6]} 36. fxg4 {[%clk
0:02:29.5]} 36... fxg4 {[%clk 0:06:07.5]} 37. Rh7+ {[%clk 0:02:27.7]} 37... Kg6
{[%clk 0:06:05.5]} 38. Rc7 {[%clk 0:02:25.7]} 38... Rf5+ {[%clk 0:05:44.3]} 39.
Ke2 {[%clk 0:02:26.6]} 39... Raf3 {[%clk 0:05:45.7]} 40. Rcc2 {[%clk 0:02:16.6]}
40... Kf7 {[%clk 0:05:31.4]} 41. Ra2 {[%clk 0:02:14.7]} 41... Ke6 {[%clk
0:05:27.3]} 42. d5+ {[%clk 0:02:14.4]} 42... Kd6 {[%clk 0:05:24.8]} 43. Rxa5
{[%clk 0:02:07]} 43... Rf2+ {[%clk 0:05:24.7]} 44. Kd1 {[%clk 0:02:08.1]} 44...
Rxd2+ {[%clk 0:05:24.9]} 45. Kxd2 {[%clk 0:02:08.5]} 45... Rf2+ {[%clk
0:05:17.6]} 46. Ke3 {[%clk 0:02:09.2]} 46... Rxh2 {[%clk 0:05:19.5]} 47. Kf4
{[%clk 0:02:07.8]} 47... Rg2 {[%clk 0:04:40.7]} 48. Ra1 {[%clk 0:00:30.8]} 48...
f5 {[%clk 0:04:27.6]} 49. Kxf5 {[%clk 0:00:12.4]} 49... Rxg3 {[%clk 0:04:24.5]}
50. Kf4 {[%clk 0:00:11.2]} 50... Rg2 {[%clk 0:04:24.8]} 51. Rd1 {[%clk
0:00:08.1]} 51... h2 {[%clk 0:04:25]} 52. Rh1 {[%clk 0:00:07.5]} 52... g3 {[%clk
0:04:26.2]} 0-1

[Event "GrandPrix_29.05"]
[Site "Chess.com"]
[Date "2020.05.29"]
[Round "7"]
[White "wnstop"]
[Black "Carpe7Diem"]
[Result "1-0"]
[WhiteElo "2113"]
[BlackElo "2069"]
[TimeControl "600+2"]
[EndTime "12:29:07 PDT"]
[Termination "wnstop won by resignation"]

1. e4 {[%clk 0:09:53.4]} 1... c6 {[%clk 0:09:54]} 2. d4 {[%clk 0:09:53.5]} 2...
d5 {[%clk 0:09:53.9]} 3. e5 {[%clk 0:09:54.2]} 3... Bf5 {[%clk 0:09:53.3]} 4.
Bd3 {[%clk 0:09:55]} 4... Bxd3 {[%clk 0:09:53.6]} 5. Qxd3 {[%clk 0:09:56.9]}
5... e6 {[%clk 0:09:53.6]} 6. Ne2 {[%clk 0:09:58]} 6... c5 {[%clk 0:09:51.4]} 7.
c3 {[%clk 0:09:58.4]} 7... Nc6 {[%clk 0:09:51.4]} 8. O-O {[%clk 0:09:57.2]} 8...
Nge7 {[%clk 0:09:49.8]} 9. Nd2 {[%clk 0:09:57.8]} 9... Nf5 {[%clk 0:09:47.3]}
10. Nf3 {[%clk 0:09:58]} 10... Be7 {[%clk 0:09:38.9]} 11. g4 {[%clk 0:09:54.9]}
11... Nh4 {[%clk 0:09:23.1]} 12. Nxh4 {[%clk 0:09:55.3]} 12... Bxh4 {[%clk
0:09:25]} 13. f4 {[%clk 0:09:52.8]} 13... cxd4 {[%clk 0:09:13]} 14. cxd4 {[%clk
0:09:52.3]} 14... g6 {[%clk 0:08:05.1]} 15. Kh1 {[%clk 0:08:32]} 15... Qb6
{[%clk 0:07:38.8]} 16. f5 {[%clk 0:08:05.9]} 16... O-O-O {[%clk 0:06:52.2]} 17.
Be3 {[%clk 0:06:36.4]} 17... gxf5 {[%clk 0:05:39]} 18. gxf5 {[%clk 0:06:35.2]}
18... Ne7 {[%clk 0:05:01.6]} 19. f6 {[%clk 0:06:15.9]} 19... Nf5 {[%clk
0:04:32.1]} 20. Rxf5 {[%clk 0:05:02.2]} 20... exf5 {[%clk 0:04:34]} 21. Qxf5+
{[%clk 0:05:02.6]} 21... Kb8 {[%clk 0:04:29.9]} 22. b3 {[%clk 0:03:06.7]} 22...
Qb5 {[%clk 0:03:33.6]} 23. Nf4 {[%clk 0:02:39.4]} 23... Rhg8 {[%clk 0:02:48.6]}
24. e6 {[%clk 0:01:36.6]} 24... fxe6 {[%clk 0:02:46.2]} 25. Nxe6 {[%clk
0:01:26.5]} 25... Qe2 {[%clk 0:01:48.7]} 26. Qe5+ {[%clk 0:01:16.8]} 1-0

[Event "GrandPrix_29.05"]
[Site "Chess.com"]
[Date "2020.05.29"]
[Round "7"]
[White "Khvicha_Supatashvili"]
[Black "vagpat"]
[Result "0-1"]
[WhiteElo "2058"]
[BlackElo "2205"]
[TimeControl "600+2"]
[EndTime "12:29:08 PDT"]
[Termination "vagpat won by resignation"]

1. d4 {[%clk 0:10:01.9]} 1... Nf6 {[%clk 0:10:00.2]} 2. c4 {[%clk 0:10:02.4]}
2... e6 {[%clk 0:10:01.1]} 3. Nf3 {[%clk 0:10:03.2]} 3... Bb4+ {[%clk
0:10:01.7]} 4. Bd2 {[%clk 0:10:03]} 4... a5 {[%clk 0:10:02.3]} 5. Nc3 {[%clk
0:10:02.3]} 5... O-O {[%clk 0:09:57.8]} 6. e4 {[%clk 0:10:02.1]} 6... Bxc3
{[%clk 0:09:56]} 7. bxc3 {[%clk 0:10:01.7]} 7... Nxe4 {[%clk 0:09:56.8]} 8. Bd3
{[%clk 0:10:02.9]} 8... f5 {[%clk 0:09:07.8]} 9. Bxe4 {[%clk 0:09:36.1]} 9...
fxe4 {[%clk 0:09:09.7]} 10. Ng5 {[%clk 0:09:36.4]} 10... d5 {[%clk 0:09:08.1]}
11. h4 {[%clk 0:09:07]} 11... Qf6 {[%clk 0:08:30.7]} 12. Be3 {[%clk 0:09:02.3]}
12... c6 {[%clk 0:08:15.1]} 13. Qh5 {[%clk 0:08:20.8]} 13... h6 {[%clk
0:08:08.5]} 14. Nh3 {[%clk 0:08:12.8]} 14... dxc4 {[%clk 0:07:57.9]} 15. Nf4
{[%clk 0:07:58.2]} 15... Bd7 {[%clk 0:07:23.3]} 16. g4 {[%clk 0:07:41]} 16...
Qf7 {[%clk 0:05:27.9]} 17. Qe5 {[%clk 0:07:02.8]} 17... Na6 {[%clk 0:04:42.8]}
18. g5 {[%clk 0:04:52]} 18... h5 {[%clk 0:04:22.8]} 19. g6 {[%clk 0:04:30]}
19... Qf5 {[%clk 0:04:20.3]} 20. Qd6 {[%clk 0:04:04.7]} 20... Rad8 {[%clk
0:03:46.9]} 21. Rg1 {[%clk 0:04:01.8]} 21... Bc8 {[%clk 0:03:46.9]} 22. Qa3
{[%clk 0:03:48.5]} 22... c5 {[%clk 0:03:01.9]} 23. Rg5 {[%clk 0:03:46.6]} 23...
Qf6 {[%clk 0:03:01.4]} 24. dxc5 {[%clk 0:02:45.3]} 24... Nb4 {[%clk 0:02:51.3]}
25. Qc1 {[%clk 0:02:12.9]} 25... e5 {[%clk 0:02:31.3]} 26. Nxh5 {[%clk
0:01:56.9]} 26... Nd3+ {[%clk 0:02:29]} 27. Kf1 {[%clk 0:01:56.5]} 27... Qf3
{[%clk 0:02:01.1]} 28. Qd1 {[%clk 0:00:48.1]} 28... Qxe3 {[%clk 0:02:00.6]} 0-1

[Event "GrandPrix_29.05"]
[Site "Chess.com"]
[Date "2020.05.29"]
[Round "7"]
[White "Elshadchess"]
[Black "WoodlandMagic"]
[Result "0-1"]
[WhiteElo "1866"]
[BlackElo "2082"]
[TimeControl "600+2"]
[EndTime "12:29:14 PDT"]
[Termination "WoodlandMagic won by resignation"]

1. Nc3 {[%clk 0:10:01.8]} 1... d5 {[%clk 0:09:45.4]} 2. e4 {[%clk 0:10:02.3]}
2... c6 {[%clk 0:09:43.8]} 3. Nf3 {[%clk 0:10:03.6]} 3... a6 {[%clk 0:09:44.3]}
4. g3 {[%clk 0:09:34]} 4... Bg4 {[%clk 0:09:40]} 5. Bg2 {[%clk 0:09:31.7]} 5...
e6 {[%clk 0:09:39.1]} 6. d3 {[%clk 0:09:22.8]} 6... Nf6 {[%clk 0:09:37.9]} 7. h3
{[%clk 0:09:23.4]} 7... Bh5 {[%clk 0:09:27.7]} 8. e5 {[%clk 0:09:18.4]} 8...
Nfd7 {[%clk 0:09:25.8]} 9. g4 {[%clk 0:09:18.3]} 9... Bg6 {[%clk 0:09:25.5]} 10.
Bf4 {[%clk 0:09:03.4]} 10... c5 {[%clk 0:09:25.7]} 11. Qe2 {[%clk 0:08:47]}
11... Nc6 {[%clk 0:09:23.7]} 12. O-O {[%clk 0:08:42.7]} 12... Be7 {[%clk
0:09:14.4]} 13. Rfe1 {[%clk 0:08:01.2]} 13... h5 {[%clk 0:09:12.6]} 14. g5
{[%clk 0:07:27.1]} 14... h4 {[%clk 0:09:07.7]} 15. Qd2 {[%clk 0:06:55.4]} 15...
Rh5 {[%clk 0:08:29.9]} 16. Kh1 {[%clk 0:06:19]} 16... Bf5 {[%clk 0:08:18.2]} 17.
Rg1 {[%clk 0:06:02.2]} 17... Nf8 {[%clk 0:08:16.8]} 18. Bf1 {[%clk 0:05:57]}
18... Ng6 {[%clk 0:08:14.8]} 19. Bh2 {[%clk 0:05:54.1]} 19... b5 {[%clk
0:07:37.4]} 20. Ne2 {[%clk 0:05:48.8]} 20... Qa5 {[%clk 0:06:57.9]} 21. Qe3
{[%clk 0:05:33.9]} 21... Nb4 {[%clk 0:06:37.1]} 22. Qd2 {[%clk 0:05:21.2]} 22...
Nc6 {[%clk 0:06:16.6]} 23. Qc1 {[%clk 0:05:19.1]} 23... Rc8 {[%clk 0:06:01.1]}
24. a4 {[%clk 0:05:15.7]} 24... b4 {[%clk 0:05:49.7]} 25. Nf4 {[%clk 0:05:03.5]}
25... Nxf4 {[%clk 0:05:49.6]} 26. Qxf4 {[%clk 0:05:05.4]} 26... g6 {[%clk
0:05:30.4]} 27. b3 {[%clk 0:04:40.1]} 27... Kd7 {[%clk 0:05:18.9]} 28. Re1
{[%clk 0:04:34.7]} 28... Rh7 {[%clk 0:05:08.4]} 29. Bg2 {[%clk 0:04:25.2]} 29...
Qb6 {[%clk 0:05:01.4]} 30. Rd1 {[%clk 0:03:58.4]} 30... a5 {[%clk 0:04:52.3]}
31. Rde1 {[%clk 0:03:44.6]} 31... Nd4 {[%clk 0:04:45.4]} 32. Nxd4 {[%clk
0:03:44.7]} 32... cxd4 {[%clk 0:04:46.5]} 33. Re2 {[%clk 0:03:44.4]} 33... Rc3
{[%clk 0:04:45.1]} 34. Qd2 {[%clk 0:03:32.6]} 34... Rh8 {[%clk 0:04:40.2]} 35.
Bf4 {[%clk 0:03:33.7]} 35... Rhc8 {[%clk 0:04:39.3]} 36. Qd1 {[%clk 0:03:24.6]}
36... Qc5 {[%clk 0:04:31]} 37. Qa1 {[%clk 0:03:08.3]} 37... Rxc2 {[%clk
0:04:25.6]} 38. Rxc2 {[%clk 0:03:07.8]} 38... Qxc2 {[%clk 0:04:26.6]} 39. Rc1
{[%clk 0:03:08]} 39... Qxd3 {[%clk 0:04:11.1]} 40. Bf1 {[%clk 0:03:04.2]} 40...
Qf3+ {[%clk 0:04:10.8]} 41. Kg1 {[%clk 0:03:00.6]} 41... Qxf4 {[%clk 0:04:10.8]}
42. Bb5+ {[%clk 0:02:59.9]} 42... Kd8 {[%clk 0:04:11.4]} 43. Rxc8+ {[%clk
0:02:56.9]} 43... Kxc8 {[%clk 0:04:12.5]} 44. Qf1 {[%clk 0:02:41.4]} 44... Qxg5+
{[%clk 0:04:08.2]} 45. Kh2 {[%clk 0:02:39]} 45... Qf4+ {[%clk 0:04:07.9]} 46.
Kg1 {[%clk 0:02:38.2]} 46... Qxe5 {[%clk 0:03:54.8]} 47. Ba6+ {[%clk 0:02:38.1]}
47... Kd8 {[%clk 0:03:51.9]} 48. Qb5 {[%clk 0:02:38.6]} 48... Bd6 {[%clk
0:03:50.4]} 49. Qxa5+ {[%clk 0:02:20.5]} 49... Ke7 {[%clk 0:03:51.2]} 50. Qb6
{[%clk 0:01:52.4]} 50... Bxh3 {[%clk 0:03:48.4]} 0-1

[Event "GrandPrix_29.05"]
[Site "Chess.com"]
[Date "2020.05.29"]
[Round "7"]
[White "tigra"]
[Black "grunbergmihai"]
[Result "1-0"]
[WhiteElo "2645"]
[BlackElo "2459"]
[TimeControl "600+2"]
[EndTime "12:29:38 PDT"]
[Termination "tigra won by resignation"]

1. e4 {[%clk 0:10:01.9]} 1... Nf6 {[%clk 0:09:55.4]} 2. Qe2 {[%clk 0:09:58.3]}
2... e5 {[%clk 0:09:50.6]} 3. Nf3 {[%clk 0:09:58.2]} 3... Nc6 {[%clk 0:09:49.6]}
4. c3 {[%clk 0:09:59.1]} 4... d6 {[%clk 0:08:58.6]} 5. g3 {[%clk 0:09:44.5]}
5... g6 {[%clk 0:08:32.5]} 6. Bg2 {[%clk 0:09:45.3]} 6... Bg7 {[%clk 0:08:33.6]}
7. O-O {[%clk 0:09:46.3]} 7... O-O {[%clk 0:08:32.7]} 8. d3 {[%clk 0:09:28.8]}
8... Re8 {[%clk 0:08:25.2]} 9. a4 {[%clk 0:09:21.4]} 9... d5 {[%clk 0:08:17.4]}
10. a5 {[%clk 0:09:11.3]} 10... a6 {[%clk 0:08:07.6]} 11. h3 {[%clk 0:09:11.8]}
11... h6 {[%clk 0:07:58.4]} 12. Nbd2 {[%clk 0:08:33.3]} 12... Be6 {[%clk
0:07:08.4]} 13. Re1 {[%clk 0:08:34.3]} 13... Nd7 {[%clk 0:06:34.9]} 14. Ng5
{[%clk 0:08:25.5]} 14... dxe4 {[%clk 0:05:51.7]} 15. Nxe6 {[%clk 0:08:25.7]}
15... Rxe6 {[%clk 0:05:51.7]} 16. Nxe4 {[%clk 0:07:25.8]} 16... Re8 {[%clk
0:05:10.9]} 17. g4 {[%clk 0:07:22]} 17... Nf6 {[%clk 0:05:04.2]} 18. Nxf6+
{[%clk 0:06:59.9]} 18... Qxf6 {[%clk 0:05:01.5]} 19. Qc2 {[%clk 0:05:20.5]}
19... Rad8 {[%clk 0:04:53.6]} 20. Be3 {[%clk 0:05:14.7]} 20... Qe6 {[%clk
0:04:44]} 21. b4 {[%clk 0:04:57.5]} 21... Qd7 {[%clk 0:03:54.4]} 22. Qb3 {[%clk
0:04:20.7]} 22... Kh7 {[%clk 0:03:23.8]} 23. b5 {[%clk 0:04:11.8]} 23... axb5
{[%clk 0:03:22.1]} 24. Qxb5 {[%clk 0:04:13]} 24... Qxd3 {[%clk 0:02:38]} 25.
Qxb7 {[%clk 0:03:54.4]} 25... Ne7 {[%clk 0:02:35.4]} 26. a6 {[%clk 0:03:49]}
26... c6 {[%clk 0:02:05.5]} 27. a7 {[%clk 0:03:45.6]} 27... Ra8 {[%clk 0:02:03]}
28. Bc5 {[%clk 0:02:15.9]} 28... Bf6 {[%clk 0:01:51.3]} 29. Bxe7 {[%clk
0:02:10.8]} 29... Bxe7 {[%clk 0:01:50]} 30. Qxc6 {[%clk 0:02:04.5]} 30... Bh4
{[%clk 0:01:18.2]} 31. Qxa8 {[%clk 0:01:51.7]} 31... Rxa8 {[%clk 0:01:17.9]} 32.
Bxa8 {[%clk 0:01:52.6]} 32... Qxh3 {[%clk 0:01:11.9]} 33. Bg2 {[%clk 0:01:47]}
1-0

[Event "GrandPrix_29.05"]
[Site "Chess.com"]
[Date "2020.05.29"]
[Round "7"]
[White "LorisinoC"]
[Black "viktorko131"]
[Result "0-1"]
[WhiteElo "2009"]
[BlackElo "2172"]
[TimeControl "600+2"]
[EndTime "12:29:41 PDT"]
[Termination "viktorko131 won by resignation"]

1. e4 {[%clk 0:10:01.9]} 1... c5 {[%clk 0:09:58.9]} 2. Nf3 {[%clk 0:10:01.2]}
2... d6 {[%clk 0:09:59.3]} 3. Bb5+ {[%clk 0:10:00.6]} 3... Bd7 {[%clk
0:09:58.7]} 4. Bxd7+ {[%clk 0:10:00.4]} 4... Nxd7 {[%clk 0:09:59.6]} 5. c3
{[%clk 0:09:54.7]} 5... Ngf6 {[%clk 0:09:53.6]} 6. Qe2 {[%clk 0:09:53.9]} 6...
g6 {[%clk 0:09:45.2]} 7. O-O {[%clk 0:09:53.4]} 7... Bg7 {[%clk 0:09:43.3]} 8.
Rd1 {[%clk 0:09:53.7]} 8... O-O {[%clk 0:09:26.4]} 9. d4 {[%clk 0:09:53.6]} 9...
Rc8 {[%clk 0:08:37.4]} 10. e5 {[%clk 0:09:46.4]} 10... Nd5 {[%clk 0:08:33.4]}
11. c4 {[%clk 0:09:31.4]} 11... N5b6 {[%clk 0:08:23.7]} 12. dxc5 {[%clk
0:08:59.6]} 12... Nxc5 {[%clk 0:08:19.5]} 13. b4 {[%clk 0:08:17.9]} 13... Ncd7
{[%clk 0:08:20]} 14. c5 {[%clk 0:07:59.3]} 14... Nxe5 {[%clk 0:08:03.8]} 15.
Nxe5 {[%clk 0:07:48.6]} 15... Bxe5 {[%clk 0:08:02.7]} 16. Bb2 {[%clk 0:07:48.8]}
16... Bxb2 {[%clk 0:07:58.6]} 17. Qxb2 {[%clk 0:07:46.9]} 17... Nc4 {[%clk
0:07:27]} 18. Qe2 {[%clk 0:06:46.5]} 18... d5 {[%clk 0:07:10.1]} 19. Nd2 {[%clk
0:06:14.8]} 19... Nxd2 {[%clk 0:07:01.1]} 20. Qxd2 {[%clk 0:06:11.8]} 20... e6
{[%clk 0:07:01.9]} 21. Rac1 {[%clk 0:06:01.3]} 21... Qd7 {[%clk 0:06:57.2]} 22.
Qd4 {[%clk 0:05:41.4]} 22... f6 {[%clk 0:06:38.9]} 23. Rd3 {[%clk 0:05:08.7]}
23... b6 {[%clk 0:06:23.4]} 24. Rdc3 {[%clk 0:05:04.4]} 24... e5 {[%clk
0:06:11]} 25. Qd1 {[%clk 0:04:14.9]} 25... bxc5 {[%clk 0:06:03.9]} 26. Rxc5
{[%clk 0:04:11.4]} 26... d4 {[%clk 0:05:31.6]} 27. h3 {[%clk 0:03:55.3]} 27...
Rxc5 {[%clk 0:04:47.5]} 28. Rxc5 {[%clk 0:03:47.7]} 28... Rc8 {[%clk 0:04:38.9]}
29. Qb3+ {[%clk 0:03:19.9]} 29... Kg7 {[%clk 0:04:34.9]} 30. a4 {[%clk
0:02:31.5]} 30... Rd8 {[%clk 0:03:12.6]} 31. Qd1 {[%clk 0:00:52.7]} 31... d3
{[%clk 0:03:04.2]} 32. Qd2 {[%clk 0:00:49.4]} 32... Qxa4 {[%clk 0:02:51.8]} 33.
Rc7+ {[%clk 0:00:46.9]} 33... Rd7 {[%clk 0:02:52.7]} 34. Rxd7+ {[%clk
0:00:26.4]} 34... Qxd7 {[%clk 0:02:51.8]} 35. g3 {[%clk 0:00:20.4]} 35... Qd5
{[%clk 0:02:46.7]} 36. Kh2 {[%clk 0:00:18.1]} 36... Qe4 {[%clk 0:02:40.2]} 37.
h4 {[%clk 0:00:17.7]} 37... Qe2 {[%clk 0:02:38.1]} 0-1